Organisation Name,Organisation Code,Effective Date,Directorate,Service Category,Service Category URI,Supplier Name,Payment Date,Transaction Number,Net Amount,Irrecoverable VAT,Purpose_of_the_expenditure,Merchant Category,,
Wyre Council,http://opendatacommunities.org/doc/district-council/wyre,31/12/2018,People and Places,Cultural and Related Services,132A,Facebook,09/10/2018,130415,10.00,0.00,Graeme Park facebook,Advertising - General,,
Wyre Council,http://opendatacommunities.org/doc/district-council/wyre,31/12/2018,People and Places,Cultural and Related Services,132A,facebook,09/10/2018,130423,10.00,0.00,Fylde food and drink festival,Advertising - General,,
Wyre Council,http://opendatacommunities.org/doc/district-council/wyre,31/12/2018,People and Places,Cultural and Related Services,132A,facebook,09/10/2018,130431,1.16,0.00,Food festival ad,Advertising - General,,
Wyre Council,http://opendatacommunities.org/doc/district-council/wyre,31/12/2018,People and Places,Cultural and Related Services,132A,Facebook,03/12/2018,132366,3.12,0.00,Tina turner ad,Advertising - General,,
Wyre Council,http://opendatacommunities.org/doc/district-council/wyre,31/12/2018,People and Places,Cultural and Related Services,132A,Facebook,03/12/2018,132376,10.00,0.00,Annie the musical ad,Advertising - General,,
Wyre Council,http://opendatacommunities.org/doc/district-council/wyre,31/12/2018,People and Places,Cultural and Related Services,132A,facebook,03/12/2018,132378,10.00,0.00,Faith george michael ad,Advertising - General,,
Wyre Council,http://opendatacommunities.org/doc/district-council/wyre,31/12/2018,People and Places,Cultural and Related Services,132A,facebook,03/12/2018,132380,10.00,0.00,E-news facebook ad,Advertising - General,,
Wyre Council,http://opendatacommunities.org/doc/district-council/wyre,31/12/2018,People and Places,Cultural and Related Services,132A,Facebook,03/12/2018,132311,8.84,0.00,Food festival ads,Advertising - General,,
Wyre Council,http://opendatacommunities.org/doc/district-council/wyre,31/12/2018,People and Places,Cultural and Related Services,132A,facebook,03/12/2018,132315,15.00,0.00,QUEST ad facebook,Advertising - General,,
Wyre Council,http://opendatacommunities.org/doc/district-council/wyre,31/12/2018,People and Places,Cultural and Related Services,132A,facebook,03/12/2018,132317,8.00,0.00,Food festival ad,Advertising - General,,
Wyre Council,http://opendatacommunities.org/doc/district-council/wyre,31/12/2018,People and Places,Cultural and Related Services,132A,facebook,03/12/2018,132329,5.00,0.00,Comp facebook ad - quest,Advertising - General,,
Wyre Council,http://opendatacommunities.org/doc/district-council/wyre,31/12/2018,People and Places,Cultural and Related Services,132A,facebook,03/12/2018,132331,10.00,0.00,Early bird ticket ad,Advertising - General,,
Wyre Council,http://opendatacommunities.org/doc/district-council/wyre,31/12/2018,People and Places,Cultural and Related Services,132A,facebook,03/12/2018,132333,10.00,0.00,Patsy Cline ad,Advertising - General,,
Wyre Council,http://opendatacommunities.org/doc/district-council/wyre,31/12/2018,People and Places,Cultural and Related Services,132A,facebook,03/12/2018,132339,6.88,0.00,Tina Turner ad,Advertising - General,,
Wyre Council,http://opendatacommunities.org/doc/district-council/wyre,31/12/2018,People and Places,Cultural and Related Services,132A,facebook,03/12/2018,132341,10.00,0.00,Cannon and Ball,Advertising - General,,
Wyre Council,http://opendatacommunities.org/doc/district-council/wyre,31/12/2018,People and Places,Cultural and Related Services,132A,facebook,03/12/2018,132370,10.00,0.00,Elvis facebook,Advertising - General,,
Wyre Council,http://opendatacommunities.org/doc/district-council/wyre,31/12/2018,People and Places,Cultural and Related Services,132A,Facebook,03/12/2018,132386,2.17,0.00,Forgotten Melodies,Advertising - General,,
Wyre Council,http://opendatacommunities.org/doc/district-council/wyre,31/12/2018,People and Places,Cultural and Related Services,132A,facebook,03/12/2018,132374,10.00,0.00,Made in Motown,Advertising - General,,
Wyre Council,http://opendatacommunities.org/doc/district-council/wyre,31/12/2018,People and Places,Cultural and Related Services,132A,Facebook,03/12/2018,132382,10.00,0.00,Crafty`s halloween ad,Advertising - General,,
Wyre Council,http://opendatacommunities.org/doc/district-council/wyre,31/12/2018,Resources,Support Services,135B,Linkedin,16/10/2018,130690,358.20,0.00,Advert on LinkedIn for Head of ICT &amp; Digital,Advertising - Recruitment,,
Wyre Council,http://opendatacommunities.org/doc/district-council/wyre,31/12/2018,Resources,Support Services,135B,Facebook,06/11/2018,131332,20.00,0.00,HR Facebook Advertising 05-08.07.18,Advertising - Recruitment,,
Wyre Council,http://opendatacommunities.org/doc/district-council/wyre,31/12/2018,Resources,Corporate and Democratic Core,131A,There But Not There,06/11/2018,131344,646.92,0.00,6` Metal Soldier Silhouette for Civic Centre,Armed Forces Champion,,
Wyre Council,http://opendatacommunities.org/doc/district-council/wyre,31/12/2018,Resources,Planning and Development Servs,132C,ANDREW CURRAN LTD,28/11/2018,132062,24.57,0.00,10 PCE BRUSH CARNAUBA CAR WAX,Cleaning Materials,,
Wyre Council,http://opendatacommunities.org/doc/district-council/wyre,31/12/2018,Resources,Support Services,135B,AMAZON.CO.UK,12/10/2018,130622,38.96,0.00,Amazon items for Mod.gov project,Comp Hardware Purchases,,
Wyre Council,http://opendatacommunities.org/doc/district-council/wyre,31/12/2018,Resources,Support Services,135B,AMAZON.CO.UK,14/11/2018,131668,418.44,0.00,Amazon order ,Comp Hardware Purchases,,
Wyre Council,http://opendatacommunities.org/doc/district-council/wyre,31/12/2018,People and Places,Support Services,135B,Rise Vision,10/10/2018,130505,79.28,0.00,Rise Vision subscription,Computer Equipment Maintenance,,
Wyre Council,http://opendatacommunities.org/doc/district-council/wyre,31/12/2018,Resources,Housing General Fund,134A,Regal Hotel,12/10/2018,130612,248.00,0.00,Regal Hotel Room for redact,Consultants Fees,,
Wyre Council,http://opendatacommunities.org/doc/district-council/wyre,31/12/2018,Resources,Housing General Fund,134A,Regal Hotel,12/10/2018,130620,248.00,0.00,Regal Hotel Room for redact,Consultants Fees,,
Wyre Council,http://opendatacommunities.org/doc/district-council/wyre,31/12/2018,Resources,Housing General Fund,134A,Regal Hotel,12/10/2018,130600,248.00,0.00,Regal Hotel Room for redact,Consultants Fees,,
Wyre Council,http://opendatacommunities.org/doc/district-council/wyre,31/12/2018,Resources,Housing General Fund,134A,THE REGAL HOTEL,16/10/2018,130696,248.00,0.00,Accommodation 30/09/18 - 07/10/18 arranged,Consultants Fees,,
Wyre Council,http://opendatacommunities.org/doc/district-council/wyre,31/12/2018,Resources,Housing General Fund,134A,THE REGAL HOTEL,14/11/2018,131654,149.00,0.00,Regal Hotel Room for redact,Consultants Fees,,
Wyre Council,http://opendatacommunities.org/doc/district-council/wyre,31/12/2018,Resources,Housing General Fund,134A,THE REGAL HOTEL,14/11/2018,131652,99.00,0.00,Regal Hotel booking for redact 12/10/18 to 15/10/18,Consultants Fees,,
Wyre Council,http://opendatacommunities.org/doc/district-council/wyre,31/12/2018,Resources,"Cultural, Environ and Planning",137B,Aerial Motion Pictures Ltd,14/11/2018,131648,2498.33,0.00,Aerial Motion Pictures two places on drone course,Contract (New CCR),,
Wyre Council,http://opendatacommunities.org/doc/district-council/wyre,31/12/2018,People and Places,"Cultural, Environ and Planning",137B,HUWS GRAY,02/12/2018,132255,234.96,0.00,8 CDX PLYWOOD 8 X 4 X 18MM C/CE2 ELLIOTS FSC MIX 704,Contract (New CCR),,
Wyre Council,http://opendatacommunities.org/doc/district-council/wyre,31/12/2018,People and Places,"Cultural, Environ and Planning",137B,SCREW FIX,02/12/2018,132265,5.92,0.00,BOSCH 101BR WOOD JIGSAW BLADES,Contract (New CCR),,
Wyre Council,http://opendatacommunities.org/doc/district-council/wyre,31/12/2018,People and Places,"Cultural, Environ and Planning",137B,AITCH,04/12/2018,132440,202.60,0.00,12 POLYESTER RESIN CARTRIDGE50 MB X 100 CUP HEX ZINC PIT50 MB NYLOC NUT100 8MM FA WASHER ZINC PIT,Contract (New CCR),,
Wyre Council,http://opendatacommunities.org/doc/district-council/wyre,31/12/2018,Resources,Non Service Related Exp,137F,Amazon,06/12/2018,132574,4.50,0.00,Freestanding Fridge - new IT kitchen Postage Costs,Contract (New CCR),,
Wyre Council,http://opendatacommunities.org/doc/district-council/wyre,31/12/2018,Resources,Non Service Related Exp,137F,Amazon,06/12/2018,132572,119.12,0.00,Freestanding Fridge for new IT Kitchen ,Contract (New CCR),,
Wyre Council,http://opendatacommunities.org/doc/district-council/wyre,31/12/2018,Resources,Non Service Related Exp,137F,Amazon,06/12/2018,132566,64.15,0.00,Microwave for new IT kitchen ,Contract (New CCR),,
Wyre Council,http://opendatacommunities.org/doc/district-council/wyre,31/12/2018,Resources,Cultural and Related Services,132A,Amazon,06/11/2018,131342,45.97,0.00,"Publications - reminiscence project A Broken World, Diaries and Memories of the Great",Creative People and Places Contribution,,
Wyre Council,http://opendatacommunities.org/doc/district-council/wyre,31/12/2018,Resources,Cultural and Related Services,132A,Amazon,06/11/2018,131338,27.80,0.00,Stolen Lives Book ,Creative People and Places Contribution,,
Wyre Council,http://opendatacommunities.org/doc/district-council/wyre,31/12/2018,Resources,Support Services,135B,INFORMATION COMMISSIONER,12/10/2018,130610,40.00,0.00,ICO registration ,Data Protection,,
Wyre Council,http://opendatacommunities.org/doc/district-council/wyre,31/12/2018,Resources,Support Services,135B,EURO CAR PARTS,30/10/2018,131165,73.02,0.00,CROSS CONDENSER TRANSIT 1.8 &amp; TD 09,Daywork Materials (Excl.Tyres),,
Wyre Council,http://opendatacommunities.org/doc/district-council/wyre,31/12/2018,Resources,Environmental Services,132B,JW FISH,30/10/2018,131084,29.17,0.00,VAN KEY CUT AND PROGRAMMED,Daywork Materials (Excl.Tyres),,
Wyre Council,http://opendatacommunities.org/doc/district-council/wyre,31/12/2018,Resources,Cultural and Related Services,132A,EURO CAR PARTS,30/10/2018,131167,57.35,0.00,CROSSMEMBER DUCATO BOXER,Daywork Materials (Excl.Tyres),,
Wyre Council,http://opendatacommunities.org/doc/district-council/wyre,31/12/2018,Resources,Support Services,135B,WALTON SUMMIT TRUCK CENTRE,30/10/2018,131177,313.07,0.00,CAR PARTS,Daywork Materials (Excl.Tyres),,
Wyre Council,http://opendatacommunities.org/doc/district-council/wyre,31/12/2018,People and Places,Support Services,135B,ANDREW CURRAN LTD,21/12/2018,133042,4.99,0.00,NUMBER PLATE PK56 KHE,Daywork Materials (Excl.Tyres),,
Wyre Council,http://opendatacommunities.org/doc/district-council/wyre,31/12/2018,People and Places,Support Services,135B,THOMPSONS,21/12/2018,133030,87.28,0.00,THOMPSONS HEAVY DUTY TRUCK REAR LIGHT CAGE ( SMALL ),Daywork Materials (Excl.Tyres),,
Wyre Council,http://opendatacommunities.org/doc/district-council/wyre,31/12/2018,People and Places,Support Services,135B,AUTO BITZ,21/12/2018,133056,6.50,0.00,1 REAR NUMBER PLATE PEO9 EUM,Daywork Materials (Excl.Tyres),,
Wyre Council,http://opendatacommunities.org/doc/district-council/wyre,31/12/2018,People and Places,Environmental Services,132B,AUTO BITZ,21/12/2018,133038,6.50,0.00,1 REAR NO PLATE PO12 XLX,Daywork Materials (Excl.Tyres),,
Wyre Council,http://opendatacommunities.org/doc/district-council/wyre,31/12/2018,People and Places,Environmental Services,132B,AUTO BITZ,21/12/2018,133032,6.50,0.00,1 FRONT NO PLATE  PK12 MVY,Daywork Materials (Excl.Tyres),,
Wyre Council,http://opendatacommunities.org/doc/district-council/wyre,31/12/2018,People and Places,Environmental Services,132B,EURO CAR PARTS,21/12/2018,133036,162.40,0.00,NSF WING TRANSIT  AXIAL ROD TRANSIT MS HEADLAMP TRANSIT SUSPENSION ARM TRANSIT,Daywork Materials (Excl.Tyres),,
Wyre Council,http://opendatacommunities.org/doc/district-council/wyre,31/12/2018,People and Places,Housing General Fund,134A,AJ FABRICATION,21/12/2018,133034,36.88,0.00,1 METAL CARALOC 400 BLACK,Daywork Materials (Excl.Tyres),,
Wyre Council,http://opendatacommunities.org/doc/district-council/wyre,31/12/2018,People and Places,Environmental Services,132B,EURO CAR PARTS,21/12/2018,133040,140.00,0.00,LIFE TIME WARRANTY12V 110A 6VEE 56MM DIA B,Daywork Materials (Excl.Tyres),,
Wyre Council,http://opendatacommunities.org/doc/district-council/wyre,31/12/2018,Resources,Housing General Fund,134A,Westminster Heath Forum,03/12/2018,132404,230.00,0.00,Westminster Health Forum one delegate place 26/03/19 ,Dementia Support & Social Inclusion,,
Wyre Council,http://opendatacommunities.org/doc/district-council/wyre,31/12/2018,Resources,Environmental Services,132B,ASDA,08/11/2018,131078,34.65,0.00,GROCERIES,Engineering and Maintenance Team,,
Wyre Council,http://opendatacommunities.org/doc/district-council/wyre,31/12/2018,Resources,Planning and Development Servs,132C,Amazon,06/12/2018,132604,22.46,0.00,100 Paper Tags for Wyre Business Awards,Event Hospitality,,
Wyre Council,http://opendatacommunities.org/doc/district-council/wyre,31/12/2018,Resources,Planning and Development Servs,132C,Amazon,06/12/2018,132606,54.56,0.00,Box of 12 A4 black photo frames for Wyre Business Awards,Event Hospitality,,
Wyre Council,http://opendatacommunities.org/doc/district-council/wyre,31/12/2018,Resources,Support Services,135B,Denny International,03/12/2018,132412,51.60,0.00,Amazon order for 2x folding tables from Denny International,Event Support,,
Wyre Council,http://opendatacommunities.org/doc/district-council/wyre,31/12/2018,Resources,Cultural and Related Services,132A,AMAZON.CO.UK,14/11/2018,131664,23.01,0.00,Amazon order for air drying clay and tools for Homecoming Project,Final Homecoming Project,,
Wyre Council,http://opendatacommunities.org/doc/district-council/wyre,31/12/2018,Resources,Cultural and Related Services,132A,PaperMill Direct,14/11/2018,131660,4.50,0.00,Papermill Direct order for Parchment Paper delivery cost,Final Homecoming Project,,
Wyre Council,http://opendatacommunities.org/doc/district-council/wyre,31/12/2018,Resources,Cultural and Related Services,132A,PaperMill Direct,14/11/2018,131658,23.33,0.00,Papermill Direct order for Parchment Paper,Final Homecoming Project,,
Wyre Council,http://opendatacommunities.org/doc/district-council/wyre,31/12/2018,Resources,Cultural and Related Services,132A,LeisureshopDirect Ltd,30/10/2018,131171,196.07,0.00,Single Step 550 - 12V,Fuel,,
Wyre Council,http://opendatacommunities.org/doc/district-council/wyre,31/12/2018,Resources,Environmental Services,132B,FASTFIX WORKSHOP,30/10/2018,131090,15.00,0.00,SPARE KEYS FOR WASTE ASBESTOS CONTAINER,Hazardous Waste Disposal,,
Wyre Council,http://opendatacommunities.org/doc/district-council/wyre,31/12/2018,Resources,Cultural and Related Services,132A,Amazon,16/10/2018,130700,30.00,0.00,Legacies of the First World War ,Healthier Fleetwood Events & Activities,,
Wyre Council,http://opendatacommunities.org/doc/district-council/wyre,31/12/2018,Resources,Cultural and Related Services,132A,Amazon,06/12/2018,132600,9.87,0.00,Traditional Retro Toys Vintage Jack Straws Pick Up Game,Healthier Fleetwood Events & Activities,,
Wyre Council,http://opendatacommunities.org/doc/district-council/wyre,31/12/2018,Resources,Cultural and Related Services,132A,Amazon,06/12/2018,132596,4.37,0.00,100 x coloured glass marbles - ,Healthier Fleetwood Events & Activities,,
Wyre Council,http://opendatacommunities.org/doc/district-council/wyre,31/12/2018,Resources,Cultural and Related Services,132A,Amazon,06/12/2018,132594,7.32,0.00,Tobar Wooden Cup and BallTobar Slate And Pencil,Healthier Fleetwood Events & Activities,,
Wyre Council,http://opendatacommunities.org/doc/district-council/wyre,31/12/2018,Resources,Cultural and Related Services,132A,Amazon,06/12/2018,132592,9.17,0.00,Tin toy carousel - ,Healthier Fleetwood Events & Activities,,
Wyre Council,http://opendatacommunities.org/doc/district-council/wyre,31/12/2018,Resources,Cultural and Related Services,132A,Amazon,06/12/2018,132582,1.09,0.00,Metal wind-up jumping frog - ,Healthier Fleetwood Events & Activities,,
Wyre Council,http://opendatacommunities.org/doc/district-council/wyre,31/12/2018,Resources,Cultural and Related Services,132A,Amazon,06/12/2018,132584,5.17,0.00,Vintage wind-up rotated airplan collectable tin toy,Healthier Fleetwood Events & Activities,,
Wyre Council,http://opendatacommunities.org/doc/district-council/wyre,31/12/2018,Resources,Cultural and Related Services,132A,Amazon,06/12/2018,132586,7.99,0.00,Goki Top with Whip,Healthier Fleetwood Events & Activities,,
Wyre Council,http://opendatacommunities.org/doc/district-council/wyre,31/12/2018,Resources,Cultural and Related Services,132A,Amazon,06/12/2018,132588,6.20,0.00,Retro clockwork wind up metal walking robot toy,Healthier Fleetwood Events & Activities,,
Wyre Council,http://opendatacommunities.org/doc/district-council/wyre,31/12/2018,Resources,Cultural and Related Services,132A,Amazon,06/12/2018,132590,7.61,0.00,Flying Hats Retro Board Games - ,Healthier Fleetwood Events & Activities,,
Wyre Council,http://opendatacommunities.org/doc/district-council/wyre,31/12/2018,Resources,Cultural and Related Services,132A,Amazon,06/12/2018,132622,31.88,0.00,Light Up WheelTiddlywinksFlameless CandleChristmas Past Memorabilia PackKaleidoscope,Healthier Fleetwood Events & Activities,,
Wyre Council,http://opendatacommunities.org/doc/district-council/wyre,31/12/2018,Resources,Cultural and Related Services,132A,Amazon,06/12/2018,132620,7.27,0.00,Tin Music Boxes,Healthier Fleetwood Events & Activities,,
Wyre Council,http://opendatacommunities.org/doc/district-council/wyre,31/12/2018,Resources,Cultural and Related Services,132A,amazon,06/12/2018,132618,14.53,0.00,Tin Music Boxes x 2,Healthier Fleetwood Events & Activities,,
Wyre Council,http://opendatacommunities.org/doc/district-council/wyre,31/12/2018,Resources,Cultural and Related Services,132A,Amazon,06/12/2018,132616,7.27,0.00,Tin Music Boxes,Healthier Fleetwood Events & Activities,,
Wyre Council,http://opendatacommunities.org/doc/district-council/wyre,31/12/2018,Resources,Cultural and Related Services,132A,Amazon,06/12/2018,132614,2.47,0.00,Tobar Water Warbler,Healthier Fleetwood Events & Activities,,
Wyre Council,http://opendatacommunities.org/doc/district-council/wyre,31/12/2018,Resources,Cultural and Related Services,132A,Amazon,06/12/2018,132610,5.96,0.00,The Beetle Game,Healthier Fleetwood Events & Activities,,
Wyre Council,http://opendatacommunities.org/doc/district-council/wyre,31/12/2018,Resources,Cultural and Related Services,132A,Amazon,06/12/2018,132608,5.82,0.00,Tobar Penny Tin Ferris Wheel,Healthier Fleetwood Events & Activities,,
Wyre Council,http://opendatacommunities.org/doc/district-council/wyre,31/12/2018,People and Places,Cultural and Related Services,132A,ASDA STORES LTD,11/12/2018,132271,17.82,0.00,"Xmas market Purchases, fruit for the mulled wine, Marshmallows & Cream for the hot chocolate",Kiosk stock,,
Wyre Council,http://opendatacommunities.org/doc/district-council/wyre,31/12/2018,People and Places,Cultural and Related Services,132A,ASDA STORES LTD,11/12/2018,132273,9.96,0.00,"Hot Chocolate, as wrong kind delivered from Bidfest",Kiosk stock,,
Wyre Council,http://opendatacommunities.org/doc/district-council/wyre,31/12/2018,People and Places,Cultural and Related Services,132A,ASDA STORES LTD,11/12/2018,132275,15.99,0.00,Hot Chocolate & Cream for Xmas Market as running low.,Kiosk stock,,
Wyre Council,http://opendatacommunities.org/doc/district-council/wyre,31/12/2018,People and Places,Public Transport,133G,AITCH,02/12/2018,132233,120.00,0.00,8 SQUIRE VULCAN LONG SHACKLE COMBINATION PADLOCK10 M8 X 75 HEX SETSSCREW10 M8 X 30 REPAIR WASHER,Landing Stage Maintenance,,
Wyre Council,http://opendatacommunities.org/doc/district-council/wyre,31/12/2018,People and Places,Public Transport,133G,AITCH,02/12/2018,132239,300.00,0.00,110 20MM X 600MM ROUND STEEL BAR25 350MM X25MM BORE FLAT METAL CUTTING DISC,Landing Stage Maintenance,,
Wyre Council,http://opendatacommunities.org/doc/district-council/wyre,31/12/2018,Resources,Support Services,135B,COMPANIES HOUSE WEB,08/11/2018,131462,1.00,0.00,Mohan Retail Ltd appointments report - Companies House,Legal Fees,,
Wyre Council,http://opendatacommunities.org/doc/district-council/wyre,31/12/2018,Resources,Support Services,135B,Amazon,10/12/2018,132612,10.13,0.00,Tobar Small Humming TopTobar Wooden Acrobatic Monkey,Legal Fees,,
Wyre Council,http://opendatacommunities.org/doc/district-council/wyre,31/12/2018,Resources,Cultural and Related Services,132A,DVLA,30/10/2018,131161,252.50,0.00,VEHICLE TAX FOR PF13 JVO,Licences/MOT Certificates,,
Wyre Council,http://opendatacommunities.org/doc/district-council/wyre,31/12/2018,Resources,Environmental Services,132B,DVLA,30/10/2018,131157,252.50,0.00,VEHICLE TAX FOR CY17 ORS,Licences/MOT Certificates,,
Wyre Council,http://opendatacommunities.org/doc/district-council/wyre,31/12/2018,Resources,Environmental Services,132B,DVLA,30/10/2018,131159,252.50,0.00,VEHICLE TAX FOR PF13 PDV,Licences/MOT Certificates,,
Wyre Council,http://opendatacommunities.org/doc/district-council/wyre,31/12/2018,Resources,Housing General Fund,134A,DVLA,30/10/2018,131153,252.50,0.00,VEHICLE TAX FOR MM16 WSK,Licences/MOT Certificates,,
Wyre Council,http://opendatacommunities.org/doc/district-council/wyre,31/12/2018,Resources,Housing General Fund,134A,DVLA,30/10/2018,131151,252.50,0.00,VEHICLE TAX FOR MM16 WSJ,Licences/MOT Certificates,,
Wyre Council,http://opendatacommunities.org/doc/district-council/wyre,31/12/2018,Resources,Support Services,135B,DVLA,30/10/2018,131149,252.50,0.00,VEHICLE  TAX PN64 LPX,Licences/MOT Certificates,,
Wyre Council,http://opendatacommunities.org/doc/district-council/wyre,31/12/2018,Resources,Environmental Services,132B,DVLA,30/10/2018,131163,252.50,0.00,vehicle tax for PKi12 MVY,Licences/MOT Certificates,,
Wyre Council,http://opendatacommunities.org/doc/district-council/wyre,31/12/2018,Resources,Cultural and Related Services,132A,DVLA,30/10/2018,131181,252.50,0.00,DVLA VEHICLE TAX PE65 DDO,Licences/MOT Certificates,,
Wyre Council,http://opendatacommunities.org/doc/district-council/wyre,31/12/2018,Resources,Environmental Services,132B,DVLA,30/10/2018,131185,252.50,0.00,DVLA VEHICLE TAX PN62 CYU,Licences/MOT Certificates,,
Wyre Council,http://opendatacommunities.org/doc/district-council/wyre,31/12/2018,Resources,Housing General Fund,134A,DVLA,30/10/2018,131173,167.50,0.00,VEHICLE TAX FOR PN63 0NG,Licences/MOT Certificates,,
Wyre Council,http://opendatacommunities.org/doc/district-council/wyre,31/12/2018,Resources,Support Services,135B,DVLA,30/10/2018,131175,167.50,0.00,VEHICLE TAX FOR MX59 FDV,Licences/MOT Certificates,,
Wyre Council,http://opendatacommunities.org/doc/district-council/wyre,31/12/2018,Resources,Support Services,135B,DVLA,30/10/2018,131183,252.50,0.00,VEHICLE TAX FOR PO59 YJU,Licences/MOT Certificates,,
Wyre Council,http://opendatacommunities.org/doc/district-council/wyre,31/12/2018,Resources,Cultural and Related Services,132A,DVLA,06/11/2018,131352,2.50,0.00,Vehicle Tax Admin Fee for PF13 EXS,Licences/MOT Certificates,,
Wyre Council,http://opendatacommunities.org/doc/district-council/wyre,31/12/2018,Resources,Cultural and Related Services,132A,DVLA,06/11/2018,131348,250.00,0.00,Vehicle Tax for PF13 EXS,Licences/MOT Certificates,,
Wyre Council,http://opendatacommunities.org/doc/district-council/wyre,31/12/2018,Resources,Cultural and Related Services,132A,DVLA,06/11/2018,131350,2.50,0.00,Vehicle Tax Admin Fee for AY05 KYA,Licences/MOT Certificates,,
Wyre Council,http://opendatacommunities.org/doc/district-council/wyre,31/12/2018,Resources,Cultural and Related Services,132A,DVLA,06/11/2018,131356,165.00,0.00,Vehicle Tax for AY05 KYA,Licences/MOT Certificates,,
Wyre Council,http://opendatacommunities.org/doc/district-council/wyre,31/12/2018,Resources,Support Services,135B,DVLA,06/11/2018,131354,2.50,0.00,Vehicle Tax Admin Fee PN64 LNY,Licences/MOT Certificates,,
Wyre Council,http://opendatacommunities.org/doc/district-council/wyre,31/12/2018,Resources,Support Services,135B,DVLA,06/11/2018,131346,250.00,0.00,Vehicle Tax for PN64 LNY,Licences/MOT Certificates,,
Wyre Council,http://opendatacommunities.org/doc/district-council/wyre,31/12/2018,People and Places,Support Services,135B,DVLA,21/12/2018,133050,252.50,0.00,VEHICLE TAX FOR PK56 KHE,Licences/MOT Certificates,,
Wyre Council,http://opendatacommunities.org/doc/district-council/wyre,31/12/2018,People and Places,Support Services,135B,DVLA,21/12/2018,133044,167.50,0.00,VEHICLE TAX FOR FJ09 ABZ,Licences/MOT Certificates,,
Wyre Council,http://opendatacommunities.org/doc/district-council/wyre,31/12/2018,People and Places,Support Services,135B,DVLA,21/12/2018,133046,252.50,0.00,VEHICLE TAX FOR PJ67 PHF,Licences/MOT Certificates,,
Wyre Council,http://opendatacommunities.org/doc/district-council/wyre,31/12/2018,People and Places,Support Services,135B,DVLA,21/12/2018,133048,252.50,0.00,VEHICLE TAX PJ67 PHA,Licences/MOT Certificates,,
Wyre Council,http://opendatacommunities.org/doc/district-council/wyre,31/12/2018,Resources,Environmental Services,132B,DVLA,21/12/2018,133054,257.50,0.00,CAR TAX LJ67 CGE,Licences/MOT Certificates,,
Wyre Council,http://opendatacommunities.org/doc/district-council/wyre,31/12/2018,Resources,Support Services,135B,DVLA,21/12/2018,133052,252.50,0.00,CAR TAX PK57 PZR,Licences/MOT Certificates,,
Wyre Council,http://opendatacommunities.org/doc/district-council/wyre,31/12/2018,Resources,Support Services,135B,NHBS,16/10/2018,130692,150.00,0.00,Long Service Award-DB NHBS Gift Vouchers,Long Service Award,,
Wyre Council,http://opendatacommunities.org/doc/district-council/wyre,31/12/2018,Resources,Support Services,135B,POST OFFICE,08/11/2018,131457,150.00,0.00,Long Service Award-Post Office One4all Gift Card-CG,Long Service Award,,
Wyre Council,http://opendatacommunities.org/doc/district-council/wyre,31/12/2018,Resources,Highways,133B,Ebay,13/11/2018,131619,300.00,0.00,20 ballasts for lighting at Cleveleys,Maint. of Unadopted Assets - Engineers,,
Wyre Council,http://opendatacommunities.org/doc/district-council/wyre,31/12/2018,Resources,Highways,133B,BLACKPOOL ELECTRICAL TRADERS,28/11/2018,132050,141.00,0.00,Q551-14 TIMECLOCK,Maint. of Unadopted Assets - Engineers,,
Wyre Council,http://opendatacommunities.org/doc/district-council/wyre,31/12/2018,Resources,Highways,133B,builders supplies,28/11/2018,132072,35.00,0.00,1 EA 600 X 450MM PEDESTRIANCAST IRON MANHOLE CD 62,Maint. of Unadopted Assets - Engineers,,
Wyre Council,http://opendatacommunities.org/doc/district-council/wyre,31/12/2018,Resources,Planning and Development Servs,132C,JW FISH,30/10/2018,131112,9.37,0.00,COPSE ROAD KEYS FOR GROUNDS,Maintenance of Tools or Equipment,,
Wyre Council,http://opendatacommunities.org/doc/district-council/wyre,31/12/2018,Resources,Planning and Development Servs,132C,AITCH,30/10/2018,131092,20.40,0.00,6 WD-40 SPECIALIST DRY PTFE AEROSOL 400ML2 750ML BLUE LINEMARKER PAINT2 750ML YELLOW LNEMARKER PAI,Maintenance of Tools or Equipment,,
Wyre Council,http://opendatacommunities.org/doc/district-council/wyre,31/12/2018,Resources,Support Services,135B,AITCH,30/10/2018,131092,82.74,0.00,6 WD-40 SPECIALIST DRY PTFE AEROSOL 400ML2 750ML BLUE LINEMARKER PAINT2 750ML YELLOW LNEMARKER PAI,Maintenance of Tools or Equipment,,
Wyre Council,http://opendatacommunities.org/doc/district-council/wyre,31/12/2018,Resources,Support Services,135B,AITCH,30/10/2018,131088,31.80,0.00,12 CT1 CLEAR CLEAR UNIQUE SEALANT &amp; CONSTRUCTION ADHESIVE100 BROWN PLUGS2 13MM TENG COMBINATIO,Maintenance of Tools or Equipment,,
Wyre Council,http://opendatacommunities.org/doc/district-council/wyre,31/12/2018,Resources,Environmental Services,132B,JW FISH,30/11/2018,132056,16.67,0.00,KEYS,Maintenance of Tools or Equipment,,
Wyre Council,http://opendatacommunities.org/doc/district-council/wyre,31/12/2018,Resources,Support Services,135B,AITCH,28/11/2018,132066,51.82,0.00,200 M20 HEX FULL NUT A2500 M20 HEX FULL NUT 1 SEALEY AIR BLOW GUN PISTOL TYPE115MM X 1MM FLAT MET,Maintenance of Tools or Equipment,,
Wyre Council,http://opendatacommunities.org/doc/district-council/wyre,31/12/2018,Resources,Support Services,135B,AITCH,28/11/2018,132064,34.14,0.00,6  WD-40 SPECIALIST DRY PFTE AEROSOL6 CP505 HEAVY DUTY COMBINATION PADLOCKM10 75 THRU BOLTM10 X 1,Maintenance of Tools or Equipment,,
Wyre Council,http://opendatacommunities.org/doc/district-council/wyre,31/12/2018,People and Places,Planning and Development Servs,132C,AITCH,02/12/2018,132243,51.00,0.00,70 M20 X 75 X 75 5MM PLATE WASHERS1 SQUIRE VULCAN LONG SHACKLE COMBINATION PADLOCK 8 M12 HEX NUTA2,Maintenance of Tools or Equipment,,
Wyre Council,http://opendatacommunities.org/doc/district-council/wyre,31/12/2018,People and Places,Support Services,135B,JW FISH,02/12/2018,132241,16.66,0.00, 1 BREAD BIN,Maintenance of Tools or Equipment,,
Wyre Council,http://opendatacommunities.org/doc/district-council/wyre,31/12/2018,People and Places,Support Services,135B,AITCH,02/12/2018,132239,30.00,0.00,110 20MM X 600MM ROUND STEEL BAR25 350MM X25MM BORE FLAT METAL CUTTING DISC,Maintenance of Tools or Equipment,,
Wyre Council,http://opendatacommunities.org/doc/district-council/wyre,31/12/2018,Resources,Housing General Fund,134A,ARGOS DISTRIBUTORS LTD,12/10/2018,130606,83.28,0.00,Argos -items ,Materials and Consumables,,
Wyre Council,http://opendatacommunities.org/doc/district-council/wyre,31/12/2018,Resources,Environmental Services,132B,THE LOCK SHOP,30/10/2018,131110,77.72,0.00,LL GALE PIER END,Materials and Consumables,,
Wyre Council,http://opendatacommunities.org/doc/district-council/wyre,31/12/2018,Resources,Support Services,135B,JEWSON,30/10/2018,131108,16.25,0.00,20 EACH BUTTERLEY 65MM CLAUGHTON VICTORIAN MIXTURE,Materials and Consumables,,
Wyre Council,http://opendatacommunities.org/doc/district-council/wyre,31/12/2018,Resources,Support Services,135B,SCREWFIX,30/10/2018,131080,5.48,0.00,MB D SHACKLES PK10,Materials and Consumables,,
Wyre Council,http://opendatacommunities.org/doc/district-council/wyre,31/12/2018,Resources,Environmental Services,132B,AMAZON .CO.UK,30/10/2018,131179,91.66,0.00,1 MAKITA DHR202Z 18 V BODY ONLY CORDLESS HAMMER DRILL,Materials and Consumables,,
Wyre Council,http://opendatacommunities.org/doc/district-council/wyre,31/12/2018,Resources,Environmental Services,132B,BUILDERS SUPPLIES,30/10/2018,131114,37.46,0.00,1 EA TIMCO 100 X 4.50 GALV ROUND WIRE NAILHANDSAW MASTERLOCK TWIN WIRE 6PC BUNGEE,Materials and Consumables,,
Wyre Council,http://opendatacommunities.org/doc/district-council/wyre,31/12/2018,Resources,Support Services,135B,JW FISH,30/10/2018,131112,9.38,0.00,COPSE ROAD KEYS FOR GROUNDS,Materials and Consumables,,
Wyre Council,http://opendatacommunities.org/doc/district-council/wyre,31/12/2018,Resources,Environmental Services,132B,BUILDERS SUPPLIES (WEST COAST) LTD,30/10/2018,131120,35.28,0.00,Redwood,Materials and Consumables,,
Wyre Council,http://opendatacommunities.org/doc/district-council/wyre,31/12/2018,Resources,Environmental Services,132B,J W FISH LTD,30/10/2018,131116,20.56,0.00,Sea Wall,Materials and Consumables,,
Wyre Council,http://opendatacommunities.org/doc/district-council/wyre,31/12/2018,Resources,Support Services,135B,SNAP-ON,30/10/2018,131169,38.45,0.00,Tire Buffer,Materials and Consumables,,
Wyre Council,http://opendatacommunities.org/doc/district-council/wyre,31/12/2018,Resources,Environmental Services,132B,BUILDERS SUPPLIES (WEST COAST) LTD,30/10/2018,131102,8.28,0.00,Rope,Materials and Consumables,,
Wyre Council,http://opendatacommunities.org/doc/district-council/wyre,31/12/2018,Resources,Support Services,135B,AITCH,30/10/2018,131092,72.90,0.00,6 WD-40 SPECIALIST DRY PTFE AEROSOL 400ML2 750ML BLUE LINEMARKER PAINT2 750ML YELLOW LNEMARKER PAI,Materials and Consumables,,
Wyre Council,http://opendatacommunities.org/doc/district-council/wyre,31/12/2018,Resources,Environmental Services,132B,AITCH,30/10/2018,131094,400.00,0.00,M20 X    220 ST/STI ALLTHREAD,Materials and Consumables,,
Wyre Council,http://opendatacommunities.org/doc/district-council/wyre,31/12/2018,Resources,Environmental Services,132B,AITCH,30/10/2018,131100,400.00,0.00,125 M20 X 220 ST/STL ALLTHREAD,Materials and Consumables,,
Wyre Council,http://opendatacommunities.org/doc/district-council/wyre,31/12/2018,Resources,Environmental Services,132B,AITCH,30/10/2018,131098,400.00,0.00,125 M20 X 220 ST/STL ALTHREAD,Materials and Consumables,,
Wyre Council,http://opendatacommunities.org/doc/district-council/wyre,31/12/2018,Resources,Environmental Services,132B,AITCH,30/10/2018,131088,195.86,0.00,12 CT1 CLEAR CLEAR UNIQUE SEALANT &amp; CONSTRUCTION ADHESIVE100 BROWN PLUGS2 13MM TENG COMBINATIO,Materials and Consumables,,
Wyre Council,http://opendatacommunities.org/doc/district-council/wyre,31/12/2018,Resources,Environmental Services,132B,AITCH,30/10/2018,131096,180.14,0.00,25 M20 X 220SU/STL ALLTHREAD12 380ML RESIN CARTRIDGE8 WD-40 SPECIALIST DRY PTFE AEROSOL 400ML,Materials and Consumables,,
Wyre Council,http://opendatacommunities.org/doc/district-council/wyre,31/12/2018,Resources,Support Services,135B,AITCH,30/10/2018,131088,94.40,0.00,12 CT1 CLEAR CLEAR UNIQUE SEALANT &amp; CONSTRUCTION ADHESIVE100 BROWN PLUGS2 13MM TENG COMBINATIO,Materials and Consumables,,
Wyre Council,http://opendatacommunities.org/doc/district-council/wyre,31/12/2018,People and Places,Environmental Services,132B,AITCH,28/11/2018,132068,408.50,0.00,215 M20 X 75 X75 X 5MM PLATE WASHERS,Materials and Consumables,,
Wyre Council,http://opendatacommunities.org/doc/district-council/wyre,31/12/2018,People and Places,Environmental Services,132B,AITCH,28/11/2018,132070,408.50,0.00,215 M20 X 75 X 75 X 5MMPLATE WASHERS,Materials and Consumables,,
Wyre Council,http://opendatacommunities.org/doc/district-council/wyre,31/12/2018,Resources,Environmental Services,132B,AITCH,28/11/2018,132058,379.40,0.00,24 380ML POLYESTER RESIN CARTRIDGE 800 M20 HEX FULL NUT A2 ST/STI,Materials and Consumables,,
Wyre Council,http://opendatacommunities.org/doc/district-council/wyre,31/12/2018,Resources,Environmental Services,132B,THE LOCK SHOP,28/11/2018,132048,19.67,0.00,KEYS FOR PUMPING STATION,Materials and Consumables,,
Wyre Council,http://opendatacommunities.org/doc/district-council/wyre,31/12/2018,Resources,Environmental Services,132B,BUILDERS SUPPLIES (WEST COAST) LTD,28/11/2018,132036,27.63,0.00,38 X 100MM REDWOOD PSE FSCTIMCO 65MM BRIGHT OVAL NAILS,Materials and Consumables,,
Wyre Council,http://opendatacommunities.org/doc/district-council/wyre,31/12/2018,Resources,Support Services,135B,BUILDERS SUPPLIES (WEST COAST) LTD,28/11/2018,132034,79.00,0.00,Grit Sand Bulk Bag25 KG Premium Concrete,Materials and Consumables,,
Wyre Council,http://opendatacommunities.org/doc/district-council/wyre,31/12/2018,Resources,Environmental Services,132B,GLASDON UK LTD,28/11/2018,132074,135.50,0.00,B-LINE THROWING BUOY COMPLETE,Materials and Consumables,,
Wyre Council,http://opendatacommunities.org/doc/district-council/wyre,31/12/2018,Resources,Environmental Services,132B,AITCH,28/11/2018,132064,258.24,0.00,6  WD-40 SPECIALIST DRY PFTE AEROSOL6 CP505 HEAVY DUTY COMBINATION PADLOCKM10 75 THRU BOLTM10 X 1,Materials and Consumables,,
Wyre Council,http://opendatacommunities.org/doc/district-council/wyre,31/12/2018,Resources,Environmental Services,132B,AITCH,28/11/2018,132066,313.70,0.00,200 M20 HEX FULL NUT A2500 M20 HEX FULL NUT 1 SEALEY AIR BLOW GUN PISTOL TYPE115MM X 1MM FLAT MET,Materials and Consumables,,
Wyre Council,http://opendatacommunities.org/doc/district-council/wyre,31/12/2018,People and Places,Environmental Services,132B,AITCH,02/12/2018,132243,135.12,0.00,70 M20 X 75 X 75 5MM PLATE WASHERS1 SQUIRE VULCAN LONG SHACKLE COMBINATION PADLOCK 8 M12 HEX NUTA2,Materials and Consumables,,
Wyre Council,http://opendatacommunities.org/doc/district-council/wyre,31/12/2018,People and Places,Cultural and Related Services,132A,AITCH,07/12/2018,132233,3.28,0.00,8 SQUIRE VULCAN LONG SHACKLE COMBINATION PADLOCK10 M8 X 75 HEX SETSSCREW10 M8 X 30 REPAIR WASHER,Materials and Consumables,,
Wyre Council,http://opendatacommunities.org/doc/district-council/wyre,31/12/2018,People and Places,Environmental Services,132B,AITCH,02/12/2018,132233,27.98,0.00,8 SQUIRE VULCAN LONG SHACKLE COMBINATION PADLOCK10 M8 X 75 HEX SETSSCREW10 M8 X 30 REPAIR WASHER,Materials and Consumables,,
Wyre Council,http://opendatacommunities.org/doc/district-council/wyre,31/12/2018,People and Places,Cultural and Related Services,132A,huws gray,10/12/2018,132215,90.31,0.00,timber machined to spec 2 5lt  cromer dark brownpreserver,Materials and Consumables,,
Wyre Council,http://opendatacommunities.org/doc/district-council/wyre,31/12/2018,People and Places,Environmental Services,132B,C;C SUPPLIES,02/12/2018,132229,42.28,0.00,2 SOFT BROOMS12 INCH2 PVC YARD &amp; HAND BRUSHES2PKANHOLE KEYS 32CM2PK ANHOLE KEYS 52CM,Materials and Consumables,,
Wyre Council,http://opendatacommunities.org/doc/district-council/wyre,31/12/2018,People and Places,Environmental Services,132B,THE LOCK SHOP,02/12/2018,132235,26.38,0.00,PADLOCK 3 X GATE KEYS,Materials and Consumables,,
Wyre Council,http://opendatacommunities.org/doc/district-council/wyre,31/12/2018,People and Places,Environmental Services,132B,THE LOCK SHOP,02/12/2018,132235,103.33,0.00,PADLOCK 3 X GATE KEYS,Materials and Consumables,,
Wyre Council,http://opendatacommunities.org/doc/district-council/wyre,31/12/2018,People and Places,Environmental Services,132B,AITCH,02/12/2018,132263,400.00,0.00,100 FLAT BAR 250MM /22MM HOLES,Materials and Consumables,,
Wyre Council,http://opendatacommunities.org/doc/district-council/wyre,31/12/2018,People and Places,Environmental Services,132B,AITCH,02/12/2018,132257,391.10,0.00,100 FLAT BAR 250MM /22MM HOLES,Materials and Consumables,,
Wyre Council,http://opendatacommunities.org/doc/district-council/wyre,31/12/2018,People and Places,Support Services,135B,KEYLINE,02/12/2018,132269,247.50,0.00,CD PLT756KMD 600X 450 X 100MMWREKIN 430X370X150 DI HINGED &amp; DOUBLE D400CDPLT777KMB 600X900X40M,Materials and Consumables,,
Wyre Council,http://opendatacommunities.org/doc/district-council/wyre,31/12/2018,Resources,Support Services,135B,CHADWICKS,02/12/2018,132247,78.36,0.00,6 EACH BRASS PADLOCK 1 EACH UNION FACILITY INDICATOR  DOOR HANDLE,Materials and Consumables,,
Wyre Council,http://opendatacommunities.org/doc/district-council/wyre,31/12/2018,People and Places,Support Services,135B,BUILDERS SUPPLIES,04/12/2018,132436,43.59,0.00,1 EA UG497 460MM LARGE CONCRETELTD PLASTIC FRAME,Materials and Consumables,,
Wyre Council,http://opendatacommunities.org/doc/district-council/wyre,31/12/2018,People and Places,Environmental Services,132B,GLASDON,04/12/2018,132434,135.50,0.00,1 B-LINE THROWING BUOY,Materials and Consumables,,
Wyre Council,http://opendatacommunities.org/doc/district-council/wyre,31/12/2018,People and Places,Environmental Services,132B,CHADWICKS,04/12/2018,132428,26.81,0.00,6 EA KEY TABS PLASTIC CLICK TYPE6 EA  BRASS PADLOCKS4 EA KEY SPLIT RINGS,Materials and Consumables,,
Wyre Council,http://opendatacommunities.org/doc/district-council/wyre,31/12/2018,People and Places,Environmental Services,132B,AITCH,04/12/2018,132440,177.92,0.00,12 POLYESTER RESIN CARTRIDGE50 MB X 100 CUP HEX ZINC PIT50 MB NYLOC NUT100 8MM FA WASHER ZINC PIT,Materials and Consumables,,
Wyre Council,http://opendatacommunities.org/doc/district-council/wyre,31/12/2018,People and Places,Support Services,135B,SCREWFIX,21/12/2018,133028,9.97,0.00,BUTANE PROPANE GAS CARTRIDGE,Materials and Consumables,,
Wyre Council,http://opendatacommunities.org/doc/district-council/wyre,31/12/2018,Resources,Corporate and Democratic Core,131A,NESM.org,06/11/2018,131340,11.99,0.00,Emergency Services Day - 999 Flag,Mayoral Hospitality,,
Wyre Council,http://opendatacommunities.org/doc/district-council/wyre,31/12/2018,Resources,Highways,133B,AITCH,28/11/2018,132064,104.00,0.00,6  WD-40 SPECIALIST DRY PFTE AEROSOL6 CP505 HEAVY DUTY COMBINATION PADLOCKM10 75 THRU BOLTM10 X 1,Naming of Streets,,
Wyre Council,http://opendatacommunities.org/doc/district-council/wyre,31/12/2018,People and Places,Housing General Fund,134A,PEACOCKS,26/11/2018,131956,30.05,0.00,REDACT,No Second Night Out Project,,
Wyre Council,http://opendatacommunities.org/doc/district-council/wyre,31/12/2018,Neighbourhood Services,Environmental Services,132B,ASDA STORES LTD,30/11/2018,132206,86.29,0.00,"Bedding, cleaning items, kettle, 2 x airbeds for a family  in need as per Housing Section",Other Contributions,,
Wyre Council,http://opendatacommunities.org/doc/district-council/wyre,31/12/2018,Resources,Planning and Development Servs,132C,Trybooking,06/12/2018,132576,48.15,0.00,Lancashare Day Celebration - 27.11.18,Other Contributions,,
Wyre Council,http://opendatacommunities.org/doc/district-council/wyre,31/12/2018,Resources,Planning and Development Servs,132C,DPD,06/12/2018,132556,19.79,0.00,Courier Service ,Other Contributions,,
Wyre Council,http://opendatacommunities.org/doc/district-council/wyre,31/12/2018,Resources,Support Services,135B,VIRGIN RAIL GROUP LTD,12/10/2018,130604,116.50,0.00,Virgin Rail Tickets 4 Dec 18,Other Travelling Expenses,,
Wyre Council,http://opendatacommunities.org/doc/district-council/wyre,31/12/2018,Resources,Support Services,135B,VIRGIN RAIL GROUP LTD,12/10/2018,130616,130.00,0.00,Virgin rail tickets for  1/10/18,Other Travelling Expenses,,
Wyre Council,http://opendatacommunities.org/doc/district-council/wyre,31/12/2018,Resources,Support Services,135B,HOLIDAY INNS,12/10/2018,130626,71.00,0.00,Holiday Inn Express Birmingham 29/10/18 ,Other Travelling Expenses,,
Wyre Council,http://opendatacommunities.org/doc/district-council/wyre,31/12/2018,Resources,Support Services,135B,VIRGIN RAIL GROUP LTD,12/10/2018,130614,36.50,0.00,Virgin Rail Tickets for 29/10/18,Other Travelling Expenses,,
Wyre Council,http://opendatacommunities.org/doc/district-council/wyre,31/12/2018,Resources,Support Services,135B,VIRGIN RAIL GROUP LTD,12/10/2018,130618,211.00,0.00,Virgin Rail tickets 16/10/18 Preston to Kensington Olympia ,Other Travelling Expenses,,
Wyre Council,http://opendatacommunities.org/doc/district-council/wyre,31/12/2018,Resources,Support Services,135B,VIRGIN RAIL GROUP LTD,12/10/2018,130624,178.00,0.00,Virgin Rail tickets for 9th and 10th October ,Other Travelling Expenses,,
Wyre Council,http://opendatacommunities.org/doc/district-council/wyre,31/12/2018,Resources,Support Services,135B,Virgin Trains,16/10/2018,130698,285.00,0.00,Rail Travel  - Preston to London 11/10/18,Other Travelling Expenses,,
Wyre Council,http://opendatacommunities.org/doc/district-council/wyre,31/12/2018,Resources,Corporate and Democratic Core,131A,Booking.com,13/11/2018,131627,110.00,0.00,"Gower House Hotel, London ",Other Travelling Expenses,,
Wyre Council,http://opendatacommunities.org/doc/district-council/wyre,31/12/2018,Resources,Corporate and Democratic Core,131A,Booking.com,13/11/2018,131627,95.00,0.00,"Gower House Hotel, London ",Other Travelling Expenses,,
Wyre Council,http://opendatacommunities.org/doc/district-council/wyre,31/12/2018,Resources,Support Services,135B,Virgin Trains,13/11/2018,131625,330.50,0.00,CFO Leadership Academy 08.11.18 ,Other Travelling Expenses,,
Wyre Council,http://opendatacommunities.org/doc/district-council/wyre,31/12/2018,Resources,Support Services,135B,VIRGIN RAIL GROUP LTD,14/11/2018,131656,88.25,0.00,Virgin Rail ticket to London for 11/10/18,Other Travelling Expenses,,
Wyre Council,http://opendatacommunities.org/doc/district-council/wyre,31/12/2018,Resources,Support Services,135B,VIRGIN RAIL GROUP LTD,14/11/2018,131650,96.50,0.00,Virgin Trains Lancaster to London Euston 28/10/18,Other Travelling Expenses,,
Wyre Council,http://opendatacommunities.org/doc/district-council/wyre,31/12/2018,Resources,Corporate and Democratic Core,131A,Virgin,06/12/2018,132558,102.35,0.00,Rail Travel 03.12.18 Poulton to London for CFPS Annual Conference,Other Travelling Expenses,,
Wyre Council,http://opendatacommunities.org/doc/district-council/wyre,31/12/2018,Resources,Corporate and Democratic Core,131A,Virgin,06/12/2018,132558,102.35,0.00, Rail Travel 03.12.18 Poulton to London for CFPS Annual Conference,Other Travelling Expenses,,
Wyre Council,http://opendatacommunities.org/doc/district-council/wyre,31/12/2018,Resources,Corporate and Democratic Core,131A,Premier Inn,06/12/2018,132562,60.50,0.00,Premier Inn Nottingham - 22.11.18 - ADSO Conference,Other Travelling Expenses,,
Wyre Council,http://opendatacommunities.org/doc/district-council/wyre,31/12/2018,Resources,Corporate and Democratic Core,131A,Virgin,06/12/2018,132564,83.40,0.00,Rail Travel - Poulton to Nottingham 22.11.18  ADSO Conference,Other Travelling Expenses,,
Wyre Council,http://opendatacommunities.org/doc/district-council/wyre,31/12/2018,Resources,Support Services,135B,Virgin,06/12/2018,132598,330.50,0.00,Rail Travel  13.12.18 - CIPFA Leadership Academy,Other Travelling Expenses,,
Wyre Council,http://opendatacommunities.org/doc/district-council/wyre,31/12/2018,Resources,Support Services,135B,Virgin,06/12/2018,132602,98.90,0.00,Rail Travel  27.11.18 Poulton to London - Coastal Chairs Meeting,Other Travelling Expenses,,
Wyre Council,http://opendatacommunities.org/doc/district-council/wyre,31/12/2018,Resources,Parking Services,133F,AICTH TOOLS,30/10/2018,131086,75.72,0.00,8 CP5OS HEAVY DUTY COMBINATION PADLOCK,"Paths, Roads and Car Park Mtnce Annual",,
Wyre Council,http://opendatacommunities.org/doc/district-council/wyre,31/12/2018,Resources,Parking Services,133F,AICTH TOOLS,30/10/2018,131086,75.00,0.00,8 CP5OS HEAVY DUTY COMBINATION PADLOCK,"Paths, Roads and Car Park Mtnce Annual",,
Wyre Council,http://opendatacommunities.org/doc/district-council/wyre,31/12/2018,Resources,Cultural and Related Services,132A,BUILDERS SUPPLIES,30/10/2018,131124,57.50,0.00,25 EA EVERFLEX SILICONE CLEAR,"Paths, Roads and Car Park Mtnce Annual",,
Wyre Council,http://opendatacommunities.org/doc/district-council/wyre,31/12/2018,Resources,Parking Services,133F,KEYLINE,28/11/2018,132060,99.55,0.00,1 EACH OSMADRAIN YARD GULLY GRATINGDOUBLE TRID400 GG &amp; REVERSABLE HINGEDTRIDUCTILE IRON COVER,"Paths, Roads and Car Park Mtnce Annual",,
Wyre Council,http://opendatacommunities.org/doc/district-council/wyre,31/12/2018,Resources,Parking Services,133F,KEYLINE,28/11/2018,132060,99.54,0.00,1 EACH OSMADRAIN YARD GULLY GRATINGDOUBLE TRID400 GG &amp; REVERSABLE HINGEDTRIDUCTILE IRON COVER,"Paths, Roads and Car Park Mtnce Annual",,
Wyre Council,http://opendatacommunities.org/doc/district-council/wyre,31/12/2018,People and Places,Cultural and Related Services,132A,AITCH,02/12/2018,132243,27.98,0.00,70 M20 X 75 X 75 5MM PLATE WASHERS1 SQUIRE VULCAN LONG SHACKLE COMBINATION PADLOCK 8 M12 HEX NUTA2,"Paths, Roads and Car Park Mtnce Annual",,
Wyre Council,http://opendatacommunities.org/doc/district-council/wyre,31/12/2018,People and Places,Cultural and Related Services,132A,AITCH,02/12/2018,132233,139.90,0.00,8 SQUIRE VULCAN LONG SHACKLE COMBINATION PADLOCK10 M8 X 75 HEX SETSSCREW10 M8 X 30 REPAIR WASHER,"Paths, Roads and Car Park Mtnce Annual",,
Wyre Council,http://opendatacommunities.org/doc/district-council/wyre,31/12/2018,People and Places,Parking Services,133F,AITCH,02/12/2018,132259,200.00,0.00,10 CP50S HEAVY DUTY COMBINATION LOCK 5 SQUIRE VULCAN LONG SHACKLE COMBINATION PADLOCK 50MM,"Paths, Roads and Car Park Mtnce Annual",,
Wyre Council,http://opendatacommunities.org/doc/district-council/wyre,31/12/2018,People and Places,Parking Services,133F,AITCH,02/12/2018,132259,200.00,0.00,10 CP50S HEAVY DUTY COMBINATION LOCK 5 SQUIRE VULCAN LONG SHACKLE COMBINATION PADLOCK 50MM,"Paths, Roads and Car Park Mtnce Annual",,
Wyre Council,http://opendatacommunities.org/doc/district-council/wyre,31/12/2018,People and Places,Parking Services,133F,AITCH,02/12/2018,132261,27.98,0.00,2 HIGH VISIBILITY PEDESTRATION GUARD RAIL SECTION STEEL WITH 12MM INFILL BARS 1 SQUIRE VULCAN LONG,"Paths, Roads and Car Park Mtnce Annual",,
Wyre Council,http://opendatacommunities.org/doc/district-council/wyre,31/12/2018,People and Places,Parking Services,133F,KEYLINE,02/12/2018,132269,85.00,0.00,CD PLT756KMD 600X 450 X 100MMWREKIN 430X370X150 DI HINGED &amp; DOUBLE D400CDPLT777KMB 600X900X40M,"Paths, Roads and Car Park Mtnce Annual",,
Wyre Council,http://opendatacommunities.org/doc/district-council/wyre,31/12/2018,People and Places,Parking Services,133F,CHADWICKS,04/12/2018,132428,26.81,0.00,6 EA KEY TABS PLASTIC CLICK TYPE6 EA  BRASS PADLOCKS4 EA KEY SPLIT RINGS,"Paths, Roads and Car Park Mtnce Annual",,
Wyre Council,http://opendatacommunities.org/doc/district-council/wyre,31/12/2018,People and Places,Parking Services,133F,CHADWICKS,04/12/2018,132428,26.81,0.00,6 EA KEY TABS PLASTIC CLICK TYPE6 EA  BRASS PADLOCKS4 EA KEY SPLIT RINGS,"Paths, Roads and Car Park Mtnce Annual",,
Wyre Council,http://opendatacommunities.org/doc/district-council/wyre,31/12/2018,Resources,Support Services,135B,SHELL WEST VIEW,30/10/2018,131118,42.92,0.00,PETROL,Petrol,,
Wyre Council,http://opendatacommunities.org/doc/district-council/wyre,31/12/2018,Resources,Support Services,135B,SHELL WEST VIEW,28/11/2018,132082,45.85,0.00,UNLEADED PETROL,Petrol,,
Wyre Council,http://opendatacommunities.org/doc/district-council/wyre,31/12/2018,People and Places,Support Services,135B,SHELL WEST VIEW,02/12/2018,132267,26.63,0.00,DIESEL 14.83 LITRES,Petrol,,
Wyre Council,http://opendatacommunities.org/doc/district-council/wyre,31/12/2018,Resources,Support Services,135B,AMAZON.CO.UK,14/11/2018,131666,49.88,0.00,Amazon order for Planning Books F Flower,Post Entry/Professional Training,,
Wyre Council,http://opendatacommunities.org/doc/district-council/wyre,31/12/2018,Resources,Public Transport,133G,UK Hydrographic Office,07/12/2018,132410,45.00,0.00,UK Hydrographic Office  tidal predictions 2019,Private Contractors,,
Wyre Council,http://opendatacommunities.org/doc/district-council/wyre,31/12/2018,Resources,Support Services,135B,THE LAW SOCIETY,08/11/2018,131464,368.00,0.00,practising certificate fees ,Professional Fees Allowance,,
Wyre Council,http://opendatacommunities.org/doc/district-council/wyre,31/12/2018,People and Places,Planning and Development Servs,132C,facebook,09/10/2018,130419,18.74,0.00,Wyre business awards applications,Promotions - General,,
Wyre Council,http://opendatacommunities.org/doc/district-council/wyre,31/12/2018,People and Places,Planning and Development Servs,132C,facebook,09/10/2018,130433,0.14,0.00,Wyre business awards,Promotions - General,,
Wyre Council,http://opendatacommunities.org/doc/district-council/wyre,31/12/2018,People and Places,Planning and Development Servs,132C,facebook,09/10/2018,130437,11.09,0.00,Wyre business awards 2018,Promotions - General,,
Wyre Council,http://opendatacommunities.org/doc/district-council/wyre,31/12/2018,People and Places,Planning and Development Servs,132C,Twitter,09/10/2018,130440,20.00,0.00,Wyre Business Awards 2018 twitter advertising,Promotions - General,,
Wyre Council,http://opendatacommunities.org/doc/district-council/wyre,31/12/2018,People and Places,Planning and Development Servs,132C,Facebook,09/10/2018,130421,19.29,0.00,Wyred up facebook,Promotions - General,,
Wyre Council,http://opendatacommunities.org/doc/district-council/wyre,31/12/2018,People and Places,Planning and Development Servs,132C,Linkedin,10/10/2018,130509,74.30,0.00,WBA linkedin in sponspored post,Promotions - General,,
Wyre Council,http://opendatacommunities.org/doc/district-council/wyre,31/12/2018,People and Places,Planning and Development Servs,132C,Facebook,03/12/2018,132309,53.12,0.00,WBA 2018,Promotions - General,,
Wyre Council,http://opendatacommunities.org/doc/district-council/wyre,31/12/2018,People and Places,Planning and Development Servs,132C,LINKEDIN,03/12/2018,132349,11.98,0.00,Linkedin WBA,Promotions - General,,
Wyre Council,http://opendatacommunities.org/doc/district-council/wyre,31/12/2018,People and Places,Planning and Development Servs,132C,Linkedin,03/12/2018,132353,79.71,0.00,WBA linkedin,Promotions - General,,
Wyre Council,http://opendatacommunities.org/doc/district-council/wyre,31/12/2018,People and Places,Planning and Development Servs,132C,linkedin,03/12/2018,132351,78.85,0.00,WBA linkedin ad,Promotions - General,,
Wyre Council,http://opendatacommunities.org/doc/district-council/wyre,31/12/2018,People and Places,Planning and Development Servs,132C,Facebook,03/12/2018,132368,19.18,0.00,WBA ad,Promotions - General,,
Wyre Council,http://opendatacommunities.org/doc/district-council/wyre,31/12/2018,People and Places,Planning and Development Servs,132C,twitter,03/12/2018,132343,2.13,0.00,WBA ad twitter,Promotions - General,,
Wyre Council,http://opendatacommunities.org/doc/district-council/wyre,31/12/2018,People and Places,Planning and Development Servs,132C,Twitter,03/12/2018,132345,14.87,0.00,WBA ad twitter,Promotions - General,,
Wyre Council,http://opendatacommunities.org/doc/district-council/wyre,31/12/2018,People and Places,Planning and Development Servs,132C,linkedin,03/12/2018,132347,50.00,0.00,WBA linkedin,Promotions - General,,
Wyre Council,http://opendatacommunities.org/doc/district-council/wyre,31/12/2018,People and Places,Planning and Development Servs,132C,facebook,03/12/2018,132321,17.05,0.00,WBA 2018,Promotions - General,,
Wyre Council,http://opendatacommunities.org/doc/district-council/wyre,31/12/2018,People and Places,Planning and Development Servs,132C,facebook,03/12/2018,132325,30.82,0.00,WBA 2018,Promotions - General,,
Wyre Council,http://opendatacommunities.org/doc/district-council/wyre,31/12/2018,People and Places,Planning and Development Servs,132C,facebook,03/12/2018,132372,7.00,0.00,WBA 2018,Promotions - General,,
Wyre Council,http://opendatacommunities.org/doc/district-council/wyre,31/12/2018,People and Places,Planning and Development Servs,132C,FACEBOOK,03/12/2018,132327,30.00,0.00,Accelerating Wyre ad,Promotions - General,,
Wyre Council,http://opendatacommunities.org/doc/district-council/wyre,31/12/2018,People and Places,Planning and Development Servs,132C,facebook,03/12/2018,132323,20.00,0.00,Wyred up ad,Promotions - General,,
Wyre Council,http://opendatacommunities.org/doc/district-council/wyre,31/12/2018,People and Places,Planning and Development Servs,132C,facebook,03/12/2018,132313,0.71,0.00,Wyed up logo ad,Promotions - General,,
Wyre Council,http://opendatacommunities.org/doc/district-council/wyre,31/12/2018,People and Places,Planning and Development Servs,132C,facebook,03/12/2018,132335,30.00,0.00,Accelerating Wyre ad,Promotions - General,,
Wyre Council,http://opendatacommunities.org/doc/district-council/wyre,31/12/2018,People and Places,Planning and Development Servs,132C,Twitter,03/12/2018,132355,8.03,0.00,WBA twitter,Promotions - General,,
Wyre Council,http://opendatacommunities.org/doc/district-council/wyre,31/12/2018,People and Places,Planning and Development Servs,132C,Twiter,03/12/2018,132357,11.97,0.00,Twitter WBA,Promotions - General,,
Wyre Council,http://opendatacommunities.org/doc/district-council/wyre,31/12/2018,People and Places,Planning and Development Servs,132C,Facebook,03/12/2018,132384,4.29,0.00,Building Wyre,Promotions - General,,
Wyre Council,http://opendatacommunities.org/doc/district-council/wyre,31/12/2018,People and Places,Support Services,135B,facebook,09/10/2018,130425,10.00,0.00,John parkinson ad,Public Relations,,
Wyre Council,http://opendatacommunities.org/doc/district-council/wyre,31/12/2018,People and Places,Support Services,135B,Twitter,09/10/2018,130450,1.32,0.00,Twitter advertising e-news,Public Relations,,
Wyre Council,http://opendatacommunities.org/doc/district-council/wyre,31/12/2018,People and Places,Support Services,135B,Twitter,09/10/2018,130452,8.68,0.00,Twitter e-news advertising,Public Relations,,
Wyre Council,http://opendatacommunities.org/doc/district-council/wyre,31/12/2018,People and Places,Support Services,135B,Facebook,09/10/2018,130435,0.81,0.00,Summer stuff facebook ad,Public Relations,,
Wyre Council,http://opendatacommunities.org/doc/district-council/wyre,31/12/2018,People and Places,Support Services,135B,Facebook,09/10/2018,130413,29.19,0.00,Summer stuff ad,Public Relations,,
Wyre Council,http://opendatacommunities.org/doc/district-council/wyre,31/12/2018,People and Places,Support Services,135B,rise vision,10/10/2018,130507,79.28,0.00,Rise vision subsciption,Public Relations,,
Wyre Council,http://opendatacommunities.org/doc/district-council/wyre,31/12/2018,People and Places,Support Services,135B,facebook,03/12/2018,132319,10.00,0.00,Sign up to e-news,Public Relations,,
Wyre Council,http://opendatacommunities.org/doc/district-council/wyre,31/12/2018,Resources,Support Services,135B,Amazon,06/12/2018,132578,26.25,0.00,A4 Sign Poster Holders for Retractable Barrier Post - Reception,Purchase Furniture,,
Wyre Council,http://opendatacommunities.org/doc/district-council/wyre,31/12/2018,Resources,Support Services,135B,Amazon,06/12/2018,132580,32.49,0.00,Retractable Crowd Control Barriers for Reception,Purchase Furniture,,
Wyre Council,http://opendatacommunities.org/doc/district-council/wyre,31/12/2018,Resources,Housing General Fund,134A,SHELTER,12/10/2018,130608,197.50,0.00,Shelter 3 x book bundle housing costs ,Purchase of Publications,,
Wyre Council,http://opendatacommunities.org/doc/district-council/wyre,31/12/2018,Resources,Support Services,135B,Amazon,16/10/2018,130702,77.45,0.00,Button on Taxis Publication,Purchase of Publications,,
Wyre Council,http://opendatacommunities.org/doc/district-council/wyre,31/12/2018,Resources,Support Services,135B,AMAZON.CO.UK,14/11/2018,131666,43.99,0.00,Amazon order for Planning Books ,Purchase of Publications,,
Wyre Council,http://opendatacommunities.org/doc/district-council/wyre,31/12/2018,Resources,Support Services,135B,Bath Publishing,03/12/2018,132416,3.50,0.00,Bath Publishing order ,Purchase of Publications,,
Wyre Council,http://opendatacommunities.org/doc/district-council/wyre,31/12/2018,Resources,Support Services,135B,Bath Publishing,03/12/2018,132414,50.00,0.00,Bath Publishing order ,Purchase of Publications,,
Wyre Council,http://opendatacommunities.org/doc/district-council/wyre,31/12/2018,Resources,Cultural and Related Services,132A,Shop Equip Ltd,16/10/2018,130694,634.72,0.00,Polar Display Fridge 400 Litre - Thornton Little Theatre,Purchase of Tools or Equipment,,
Wyre Council,http://opendatacommunities.org/doc/district-council/wyre,31/12/2018,Resources,Support Services,135B,MORLEY D LTD,30/10/2018,131155,1950.00,0.00,E GB SNAP -ON TOOLS,Purchase of Tools or Equipment,,
Wyre Council,http://opendatacommunities.org/doc/district-council/wyre,31/12/2018,Resources,Support Services,135B,WILKO,30/10/2018,131104,4.58,0.00,WILKO PUSH BIN BLACK,Purchase of Tools or Equipment,,
Wyre Council,http://opendatacommunities.org/doc/district-council/wyre,31/12/2018,Resources,Cultural and Related Services,132A,Amazon,06/11/2018,131336,49.34,0.00,Folding Wheelbarrow ,Purchase of Tools or Equipment,,
Wyre Council,http://opendatacommunities.org/doc/district-council/wyre,31/12/2018,Resources,Support Services,135B,BLACKPOOL ELECTRICAL TRADERS LTD,28/11/2018,132054,155.62,0.00,SANGAMO E854 TIME CLOCK,Purchase of Tools or Equipment,,
Wyre Council,http://opendatacommunities.org/doc/district-council/wyre,31/12/2018,Resources,Support Services,135B,SCREWFIX,28/11/2018,132046,58.32,0.00,K2 PRESSURE WASHER,Purchase of Tools or Equipment,,
Wyre Council,http://opendatacommunities.org/doc/district-council/wyre,31/12/2018,People and Places,Support Services,135B,FFP,02/12/2018,132231,18.36,0.00,4 WOMJL PCL TYPE 19 PLUG BSPT MALE2 LE/ROUND2X1EWL,Purchase of Tools or Equipment,,
Wyre Council,http://opendatacommunities.org/doc/district-council/wyre,31/12/2018,People and Places,Support Services,135B,AITCH,02/12/2018,132239,75.00,0.00,110 20MM X 600MM ROUND STEEL BAR25 350MM X25MM BORE FLAT METAL CUTTING DISC,Purchase of Tools or Equipment,,
Wyre Council,http://opendatacommunities.org/doc/district-council/wyre,31/12/2018,People and Places,Support Services,135B,BUILDERS SUPPLIES,02/12/2018,132237,35.98,0.00,2 EA ALL STEEL SQUARE MOUTH SHOVEL,Purchase of Tools or Equipment,,
Wyre Council,http://opendatacommunities.org/doc/district-council/wyre,31/12/2018,Resources,Support Services,135B,Safe Fire Direct,03/12/2018,132408,20.93,0.00,Safe Fire Direct  Dorguard Replacement feet order ,Purchase of Tools or Equipment,,
Wyre Council,http://opendatacommunities.org/doc/district-council/wyre,31/12/2018,Resources,Support Services,135B,Amazon,06/12/2018,132570,13.27,0.00,6 Gang Extension for IT,Purchase of Tools or Equipment,,
Wyre Council,http://opendatacommunities.org/doc/district-council/wyre,31/12/2018,Resources,Support Services,135B,Amazon,06/12/2018,132568,13.27,0.00,6 Gang Extension for IT,Purchase of Tools or Equipment,,
Wyre Council,http://opendatacommunities.org/doc/district-council/wyre,31/12/2018,Resources,Public Transport,133G,MARTIN BROWN PAINTS LTD,30/10/2018,131074,32.27,0.00,1 EM520/2.5,Repairs to Non-WBC Buildings,,
Wyre Council,http://opendatacommunities.org/doc/district-council/wyre,31/12/2018,Resources,Public Transport,133G,WORKSHOP DIY,30/10/2018,131072,6.33,0.00,WIRE WHEEL X 2,Repairs to Non-WBC Buildings,,
Wyre Council,http://opendatacommunities.org/doc/district-council/wyre,31/12/2018,Resources,Public Transport,133G,MARTIN BROWN PAINTS LTD,30/10/2018,131082,15.78,0.00,Paints and Brushes,Repairs to Non-WBC Buildings,,
Wyre Council,http://opendatacommunities.org/doc/district-council/wyre,31/12/2018,Resources,Public Transport,133G,SCREWFIX,28/11/2018,132078,25.14,0.00,EASYDRIVE SELF TAPPER SS ROUNDHEAD PK 100STANLEY TYLON TAPE PACKSTANLEY 20 TRADSCUT,Repairs to Non-WBC Buildings,,
Wyre Council,http://opendatacommunities.org/doc/district-council/wyre,31/12/2018,Resources,Public Transport,133G,MARTIN BROWN PAINTS LTD,28/11/2018,132084,48.61,0.00,CONSEAL TU BLACK 5L500ML MBP SATIN BLACK,Repairs to Non-WBC Buildings,,
Wyre Council,http://opendatacommunities.org/doc/district-council/wyre,31/12/2018,Resources,Public Transport,133G,WORKSHOP DIY,28/11/2018,132080,9.46,0.00,4 INTERSCREWS1 ROLLER SET 1 BRUSH SET,Repairs to Non-WBC Buildings,,
Wyre Council,http://opendatacommunities.org/doc/district-council/wyre,31/12/2018,People and Places,Public Transport,133G,BUUILDERS SUPPLIES,02/12/2018,132217,28.80,0.00,28MT 47 X 50MM SAWN CARCASSING,Repairs to Non-WBC Buildings,,
Wyre Council,http://opendatacommunities.org/doc/district-council/wyre,31/12/2018,Resources,Cultural and Related Services,132A,THE LOCK SHOP,30/10/2018,131106,82.53,0.00,MARINE GARDENS ENTRANCE GATE TO PREVENT VEHICLE PARKINGS,Responsive Building Maintenance,,
Wyre Council,http://opendatacommunities.org/doc/district-council/wyre,31/12/2018,Resources,Planning and Development Servs,132C,BUILDERS SUPPLIES,30/10/2018,131122,39.00,0.00,10EA 2.44MM X 150 X 12MMFILLABOARD CUT STRIP,Responsive Building Maintenance,,
Wyre Council,http://opendatacommunities.org/doc/district-council/wyre,31/12/2018,Resources,Cultural and Related Services,132A,NORTHERN EXPRESS GLASS LTD,28/11/2018,132042,80.88,0.00,GLASS,Responsive Building Maintenance,,
Wyre Council,http://opendatacommunities.org/doc/district-council/wyre,31/12/2018,Resources,Cultural and Related Services,132A,BUILDERS SUPPLIES,28/11/2018,132038,155.00,0.00,25 EA B50 600 X 600 X 50MMSTANDARD NATURAL FLAG 5BG BUILDING  FLAGS,Responsive Building Maintenance,,
Wyre Council,http://opendatacommunities.org/doc/district-council/wyre,31/12/2018,Resources,Cultural and Related Services,132A,BUILDERS SUPPLIES,28/11/2018,132040,195.00,0.00,1 GRIT SAND BULK BAG 10 EA 25KG PREMIUM CEMENT PLASTIC20 EA 600 X 600 X 50MM STANDARD NATURAL FLA,Responsive Building Maintenance,,
Wyre Council,http://opendatacommunities.org/doc/district-council/wyre,31/12/2018,People and Places,Cultural and Related Services,132A,BUILDERS SUPPLIES,02/12/2018,132223,170.50,0.00,20 EA D50 900X 600 X 50MM STANDARD NATURAL FLAG1 GRIT SAND BULK BAG,Responsive Building Maintenance,,
Wyre Council,http://opendatacommunities.org/doc/district-council/wyre,31/12/2018,People and Places,Environmental Services,132B,CHADWICKS,02/12/2018,132221,9.85,0.00,1 EA STORMGUARD BOTTOM DOOR STRIP BROWN 7FT,Responsive Building Maintenance,,
Wyre Council,http://opendatacommunities.org/doc/district-council/wyre,31/12/2018,People and Places,Planning and Development Servs,132C,JW FISH,02/12/2018,132227,23.31,0.00,1 EURO LOCK1 EURO CYLINDER1 RAWPLUGS,Responsive Building Maintenance,,
Wyre Council,http://opendatacommunities.org/doc/district-council/wyre,31/12/2018,People and Places,Cultural and Related Services,132A,NORTHERN GLASS LTD,02/12/2018,132251,117.30,0.00,6.4 UNIT 6 475 X 3186 476 X 304,Responsive Building Maintenance,,
Wyre Council,http://opendatacommunities.org/doc/district-council/wyre,31/12/2018,People and Places,Cultural and Related Services,132A,JW FISH,02/12/2018,132253,7.49,0.00,LEGIONELLA PROBE,Responsive Building Maintenance,,
Wyre Council,http://opendatacommunities.org/doc/district-council/wyre,31/12/2018,People and Places,Cultural and Related Services,132A,JW FISH,02/12/2018,132219,7.49,0.00,DIGITAL THERMOMETER,Responsive Building Maintenance,,
Wyre Council,http://opendatacommunities.org/doc/district-council/wyre,31/12/2018,People and Places,Public Transport,133G,AITCH,02/12/2018,132261,376.00,0.00,2 HIGH VISIBILITY PEDESTRATION GUARD RAIL SECTION STEEL WITH 12MM INFILL BARS 1 SQUIRE VULCAN LONG,Responsive Building Maintenance,,
Wyre Council,http://opendatacommunities.org/doc/district-council/wyre,31/12/2018,Resources,Planning and Development Servs,132C,CHADWICKS,02/12/2018,132247,35.89,0.00,6 EACH BRASS PADLOCK 1 EACH UNION FACILITY INDICATOR  DOOR HANDLE,Responsive Building Maintenance,,
Wyre Council,http://opendatacommunities.org/doc/district-council/wyre,31/12/2018,People and Places,Planning and Development Servs,132C,GLASDON UK LTD,04/12/2018,132430,606.54,0.00,ADV NEOPOLITIAN DUROPOL CW SOCKETADVANCED NEOPOLITION REFLECTION KIT RED/WHITE,Responsive Building Maintenance,,
Wyre Council,http://opendatacommunities.org/doc/district-council/wyre,31/12/2018,People and Places,Planning and Development Servs,132C,GLASDON,04/12/2018,132432,428.36,0.00,AD  NEOPOLITAN DUNPOL REFLECTOR KIT RED/WHITEGLASDON UNIVERSAL LOCKFAST KEY,Responsive Building Maintenance,,
Wyre Council,http://opendatacommunities.org/doc/district-council/wyre,31/12/2018,Resources,Support Services,135B,BUILDERS SUPPLIES,28/11/2018,132076,55.06,0.00,6.00 EA 2400 X 75 X 100MM INCISED TIMBER POST TREATED 2PK 5.0MM X 100MMREISSER CUTTER SCREW,Routine Maintenance,,
Wyre Council,http://opendatacommunities.org/doc/district-council/wyre,31/12/2018,Resources,Support Services,135B,BUILDERS SUPPLIES,28/11/2018,132052,90.78,0.00,2 EA UTILITY EXTRA VALUE BRUSHES HARRIS5.0 X 70MM REISSER CUTTER SCREW22 X 150MM SAWN CARCASSING,Routine Maintenance,,
Wyre Council,http://opendatacommunities.org/doc/district-council/wyre,31/12/2018,Resources,Environmental Services,132B,BUILDERS SUPPLIES,04/12/2018,132044,100.00,0.00,20 EA PLAIN BULK BAG EMPTY,Sand Bags,,
Wyre Council,http://opendatacommunities.org/doc/district-council/wyre,31/12/2018,People and Places,Environmental Services,132B,THE LOCK SHOP,04/12/2018,132235,125.29,0.00,PADLOCK 3 X GATE KEYS,Sand Bags,,
Wyre Council,http://opendatacommunities.org/doc/district-council/wyre,31/12/2018,Resources,Environmental Services,132B,BORIS NETS,02/12/2018,132245,33.00,0.00,11FT 16MM MIDLINK CHAIN,Sand Bags,,
Wyre Council,http://opendatacommunities.org/doc/district-council/wyre,31/12/2018,People and Places,Cultural and Related Services,132A,facebook,09/10/2018,130427,19.90,0.00,Fleetwood as a barracks town,Special Events,,
Wyre Council,http://opendatacommunities.org/doc/district-council/wyre,31/12/2018,People and Places,Cultural and Related Services,132A,facebook,09/10/2018,130429,12.48,0.00,Memorial park fun day,Special Events,,
Wyre Council,http://opendatacommunities.org/doc/district-council/wyre,31/12/2018,People and Places,Cultural and Related Services,132A,facebook,09/10/2018,130417,20.00,0.00,WECP Open day facebook,Special Events,,
Wyre Council,http://opendatacommunities.org/doc/district-council/wyre,31/12/2018,People and Places,Cultural and Related Services,132A,facebook,03/12/2018,132337,12.00,0.00,Family craft day,Special Events,,
Wyre Council,http://opendatacommunities.org/doc/district-council/wyre,31/12/2018,Resources,Environmental Services,132B,C&amp;amp;C SUPPLIES,30/10/2018,131076,15.88,0.00,HARRIS VALUE PACK 10 MIMISTANLY POZI DRIVE,Special Works,,
Wyre Council,http://opendatacommunities.org/doc/district-council/wyre,31/12/2018,People and Places,Cultural and Related Services,132A,HUWS GRAY,02/12/2018,132249,103.50,0.00,23 3.6 MTR HALF ROUND RAILS TANALISED,Special Works,,
Wyre Council,http://opendatacommunities.org/doc/district-council/wyre,31/12/2018,People and Places,Cultural and Related Services,132A,BUILDERS SUPPLIES,02/12/2018,132225,183.47,0.00,1800 X 75 X 75MM TIMBER POST25 X 150MM REDWOOD25 X 100MM CARCASSING TANALISEDCUP SQUARE HEX BOLT,Special Works,,
Wyre Council,http://opendatacommunities.org/doc/district-council/wyre,31/12/2018,Resources,Support Services,135B,IKEA,12/10/2018,130602,11.21,0.00,Ikea NOT Floor lamp,Stationery,,
Wyre Council,http://opendatacommunities.org/doc/district-council/wyre,31/12/2018,Resources,Central Services to the Public,131C,Ebuyer.com,06/11/2018,131334,306.64,0.00,2 x HP14X High Yield Black Toner Cartridges - CF214X,Stationery,,
Wyre Council,http://opendatacommunities.org/doc/district-council/wyre,31/12/2018,People and Places,Highways,133B,AITCH,04/12/2018,132440,10.85,0.00,12 POLYESTER RESIN CARTRIDGE50 MB X 100 CUP HEX ZINC PIT50 MB NYLOC NUT100 8MM FA WASHER ZINC PIT,"Street Furniture, Memorials - (Non BM)",,
Wyre Council,http://opendatacommunities.org/doc/district-council/wyre,31/12/2018,People and Places,Highways,133B,BUILDERS SUPPLIES,04/12/2018,132438,61.60,0.00,1 EA GRIT SAND BULK BAG6 EA PREMIUM CEMENT PLASTIC,"Street Furniture, Memorials - (Non BM)",,
Wyre Council,http://opendatacommunities.org/doc/district-council/wyre,31/12/2018,People and Places,Support Services,135B,WYRESIDE CAFE,08/11/2018,131502,20.42,0.00,Refreshments for Active Lives and Community Engagement team away day,Subsistence - Staff,,
Wyre Council,http://opendatacommunities.org/doc/district-council/wyre,31/12/2018,Resources,Support Services,135B,CIEH,03/12/2018,132400,90.00,0.00,CIEH booking for  Managing Noise Nuisance  course on 12/12/18,Technical Training,,
Wyre Council,http://opendatacommunities.org/doc/district-council/wyre,31/12/2018,Resources,Support Services,135B,CIEH,03/12/2018,132402,40.00,0.00,CIEH booking for  Managing Noise Nuisance  course on 12/12/18,Technical Training,,
Wyre Council,http://opendatacommunities.org/doc/district-council/wyre,31/12/2018,Resources,Support Services,135B,Eventbrite,13/11/2018,131629,208.34,0.00,Making Change Happen conference in Wigan  17.10.18,Training - Non HR Controlled,,
Wyre Council,http://opendatacommunities.org/doc/district-council/wyre,31/12/2018,People and Places,Environmental Services,132B,ASDA STORES LTD,26/11/2018,131954,19.14,0.00,CCTV Volunteer items - biscuits and cleaning wipes,Volunteer Expenses,,
Wyre Council,http://opendatacommunities.org/doc/district-council/wyre,31/12/2018,People and Places,Environmental Services,132B,ASDA STORES LTD,30/11/2018,132208,32.01,0.00,CCTV Volunteer Supplies Tea/Coffee/Biscuits,Volunteer Expenses,,
Wyre Council,http://opendatacommunities.org/doc/district-council/wyre,31/12/2018,Resources,Cultural and Related Services,132A,Amazon,13/11/2018,131621,5.49,0.00,Baker Ross 14 Clay Model Pottery Sculpey Tools 14cm for Modelling,Wyre Integrated Neighbourhood Healthy Ev,,
Wyre Council,http://opendatacommunities.org/doc/district-council/wyre,31/12/2018,Resources,Cultural and Related Services,132A,Bygone Times,13/11/2018,131623,354.43,0.00,Various items for Reminiscence project - ,Wyre Integrated Neighbourhood Healthy Ev,,
Wyre Council,http://opendatacommunities.org/doc/district-council/wyre,31/12/2018,Resources,Cultural and Related Services,132A,Amazon,13/11/2018,131631,109.49,0.00,"1910`s, 1960`s &amp; 1970`s scrapbooks - ",Wyre Integrated Neighbourhood Healthy Ev,,
Wyre Council,http://opendatacommunities.org/doc/district-council/wyre,31/12/2018,Resources,Cultural and Related Services,132A,IMOBILETECH LTD,14/11/2018,131644,17.46,0.00,Amazon order for folding table and tablecloth,Wyre Integrated Neighbourhood Healthy Ev,,
Wyre Council,http://opendatacommunities.org/doc/district-council/wyre,31/12/2018,Resources,Cultural and Related Services,132A,OFF PRICE STORE,14/11/2018,131670,14.05,0.00,Amazon order for  folding table and tablecloth,Wyre Integrated Neighbourhood Healthy Ev,,
Wyre Council,http://opendatacommunities.org/doc/district-council/wyre,31/12/2018,Resources,Cultural and Related Services,132A,IMobiletech,14/11/2018,131646,34.92,0.00,Amazon order for  2 x folding tables from IMobiletech,Wyre Integrated Neighbourhood Healthy Ev,,
Wyre Council,http://opendatacommunities.org/doc/district-council/wyre,31/12/2018,Resources,Cultural and Related Services,132A,Off Price,14/11/2018,131662,20.09,0.00,Amazon order for  2 xTablecloths from OffPrice,Wyre Integrated Neighbourhood Healthy Ev,,
Wyre Council,http://opendatacommunities.org/doc/district-council/wyre,31/12/2018,Resources,Cultural and Related Services,132A,Amazon,06/12/2018,132560,59.80,0.00,1950`s Scrapbooks - ,Wyre Integrated Neighbourhood Healthy Ev,,
